fUST/lending_fUST_20250517
["ID","MTS","AMOUNT","RATE_DAILY","PERIOD"]
[361332071,1747481441547,-450.0,0.00013835,2]
[361332072,1747481441556,-175.96,0.00013835,2]
[361332073,1747481441565,-450.0,0.00013835,2]
[361332074,1747481441575,-411.75,0.00013835,2]
[361332075,1747481441585,-177.79,0.00013835,2]
[361332076,1747481441594,-314.25,0.00013835,2]
[361332077,1747481441603,-450.0,0.00013835,2]
[361332078,1747481441612,-280.72,0.00013835,2]
[361332079,1747481441622,-350.0,0.00013835,2]
[361332080,1747481441631,-450.0,0.00013835,2]
[361332081,1747481441640,-450.0,0.00013835,2]
[361332082,1747481441650,-195.24,0.00013835,2]
[361332083,1747481441659,-450.0,0.00013835,2]
[361332084,1747481441669,-450.0,0.00013835,2]
[361332085,1747481441678,-450.0,0.00013835,2]
[361332086,1747481441687,-461.78298711,0.00013835,2]
[361332087,1747481441706,-35.72701289,0.00013835,2]
[361332088,1747481441715,-487.68,0.00013835,2]
[361332089,1747481441725,-450.0,0.00013835,2]
[361332090,1747481441734,-342.71,0.00013835,2]
[361332091,1747481441743,-309.98,0.00013835,2]
[361332092,1747481441753,-407.12,0.00013835,2]
[361332093,1747481441762,-126.41675093,0.00013835,2]
[361332094,1747481441774,-323.58324907,0.00013835,2]
[361332095,1747481441783,-151.91699969,0.00013835,2]
[361332096,1747481441792,-450.0,0.00013835,2]
[361332097,1747481441802,-350.0,0.00013835,2]
[361332098,1747481441811,-450.0,0.00013835,2]
[361332099,1747481441820,-408.42692414,0.00013835,2]
[361332100,1747481441831,-227.83307586,0.00013835,2]
[361332101,1747481441840,-450.0,0.00013835,2]
[361332102,1747481441850,-450.0,0.00013835,2]
[361332103,1747481441859,-231.15,0.00013835,2]
[361332104,1747481441868,-230.19,0.00013835,2]
[361332105,1747481441878,-450.0,0.00013835,2]
[361332106,1747481441888,-209.40955941,0.00013835,2]
[361332107,1747481441898,-350.0,0.00013835,2]
[361332108,1747481441907,-450.0,0.00013835,2]
[361332109,1747481441916,-450.0,0.00013835,2]
[361332110,1747481441926,-151.82,0.00013835,2]
[361332111,1747481441936,-450.0,0.00013835,2]
[361332112,1747481441945,-350.0,0.00013835,2]
[361332113,1747481441955,-450.0,0.00013835,2]
[361332114,1747481441964,-450.0,0.00013835,2]
[361332115,1747481441974,-450.0,0.00013835,2]
[361332116,1747481441986,-450.0,0.00013835,2]
[361332117,1747481441995,-450.0,0.00013835,2]
[361332118,1747481442005,-450.0,0.00013835,2]
[361332119,1747481442014,-1023.22,0.00013835,2]
[361332120,1747481442024,-450.0,0.00013835,2]
[361332121,1747481442033,-450.0,0.00013835,2]
[361332122,1747481442043,-450.0,0.00013835,2]
[361332123,1747481442052,-450.0,0.00013835,2]
[361332124,1747481442062,-561.68,0.00013835,2]
[361332125,1747481442071,-350.0,0.00013835,2]
[361332126,1747481442081,-154.14867152,0.00013872,2]
[361332127,1747481442090,-420.0,0.00013891,2]
[361332128,1747481442100,-480.0,0.00013929,2]
[361332129,1747481442109,-450.0,0.00013972,2]
[361332130,1747481442118,-450.0,0.00013972,2]
[361332131,1747481442128,-293.31,0.00013972,2]
[361332132,1747481442137,-450.0,0.00013972,2]
[361332133,1747481442146,-450.0,0.00013972,2]
[361332134,1747481442157,-450.0,0.00013972,2]
[361332135,1747481442166,-450.0,0.00013972,2]
[361332136,1747481442177,-450.0,0.00013972,2]
[361332137,1747481442186,-450.0,0.00013972,2]
[361332138,1747481442195,-450.0,0.00013972,2]
[361332139,1747481442204,-450.0,0.00013972,2]
[361332140,1747481442214,-450.0,0.00013972,2]
[361332141,1747481442223,-450.0,0.00013972,2]
[361332142,1747481442232,-300.0,0.00013972,2]
[361332143,1747481442242,-450.0,0.00013972,2]
[361332144,1747481442251,-443.73,0.00013972,2]
[361332145,1747481442261,-450.0,0.00013972,2]
[361332146,1747481442270,-450.0,0.00013972,2]
[361332147,1747481442279,-469.68,0.00013972,2]
[361332148,1747481442289,-450.0,0.00013972,2]
[361332149,1747481442298,-248.64074369,0.00013972,2]
[361332150,1747481442308,-450.0,0.00013972,2]
[361332151,1747481442318,-450.0,0.00013972,2]
[361332152,1747481442327,-450.0,0.00013972,2]
[361332153,1747481442336,-450.0,0.00013972,2]
[361332154,1747481442345,-450.0,0.00013972,2]
[361332155,1747481442354,-428.1,0.00013972,2]
[361332156,1747481442363,-450.0,0.00013972,2]
[361332158,1747481442373,-450.0,0.00013972,2]
[361332159,1747481442382,-300.0,0.00013972,2]
[361332160,1747481442391,-450.0,0.00013972,2]
[361332161,1747481442400,-450.0,0.00013972,2]
[361332162,1747481442409,-450.0,0.00013972,2]
[361332163,1747481442418,-450.0,0.00013972,2]
[361332164,1747481442427,-450.0,0.00013972,2]
[361332165,1747481442436,-450.0,0.00013972,2]
[361332166,1747481442445,-450.0,0.00013972,2]
[361332167,1747481442454,-450.0,0.00013972,2]
[361332168,1747481442463,-450.0,0.00013972,2]
[361332169,1747481442473,-158.89,0.00013972,2]
[361332170,1747481442482,-450.0,0.00013972,2]
[361332171,1747481442491,-528.39,0.00013972,2]
[361332172,1747481442500,-450.0,0.00013972,2]
[361332173,1747481442510,-553.0,0.00013972,2]
[361332174,1747481442519,-155.28,0.00013972,2]
[361332175,1747481442528,-569.91099271,0.00013972,2]
[361332176,1747481442537,-450.0,0.00013972,2]
[361332177,1747481442547,-450.0,0.00013972,2]
[361332178,1747481442556,-450.0,0.00013972,2]
[361332179,1747481442567,-450.0,0.00013972,2]
[361332180,1747481442576,-450.0,0.00013972,2]
[361332181,1747481442585,-327.78,0.00013972,2]
[361332182,1747481442595,-450.0,0.00013972,2]
[361332183,1747481442604,-450.0,0.00013972,2]
[361332184,1747481442613,-450.0,0.00013972,2]
[361332185,1747481442623,-450.0,0.00013972,2]
[361332186,1747481442632,-450.0,0.00013972,2]
[361332187,1747481442641,-450.0,0.00013972,2]
[361332188,1747481442650,-450.0,0.00013972,2]
[361332189,1747481442659,-450.0,0.00013972,2]
[361332190,1747481442668,-450.0,0.00013972,2]
[361332191,1747481442678,-872.01,0.00013972,2]
[361332192,1747481442687,-537.74,0.00013972,2]
[361332193,1747481442696,-450.0,0.00013972,2]
[361332194,1747481442705,-450.0,0.00013972,2]
[361332195,1747481442715,-450.0,0.00013972,2]
[361332196,1747481442724,-450.0,0.00013972,2]
[361332197,1747481442733,-1587.9,0.00013972,2]
[361332198,1747481442742,-450.0,0.00013972,2]
[361332199,1747481442751,-300.0,0.00013972,2]
[361332200,1747481442761,-450.0,0.00013972,2]
[361332201,1747481442770,-208.8,0.00013972,2]
[361332202,1747481442779,-2772.47,0.00013972,2]
[361332204,1747481442788,-323.51,0.00013972,2]
[361332206,1747481442798,-450.0,0.00013972,2]
[361332207,1747481442807,-241.35,0.00013972,2]
[361332209,1747481442819,-450.0,0.00013972,2]
[361332211,1747481442829,-450.0,0.00013972,2]
[361332212,1747481442838,-450.0,0.00013972,2]
[361332214,1747481442848,-450.0,0.00013972,2]
[361332216,1747481442857,-386.95,0.00013972,2]
[361332217,1747481442866,-450.0,0.00013972,2]
[361332218,1747481442875,-686.73,0.00013972,2]
[361332219,1747481442885,-450.0,0.00013972,2]
[361332221,1747481442894,-450.0,0.00013972,2]
[361332225,1747481442903,-450.0,0.00013972,2]
[361332227,1747481442912,-450.0,0.00013972,2]
[361332229,1747481442921,-450.0,0.00013972,2]
[361332231,1747481442931,-450.0,0.00013972,2]
[361332234,1747481442940,-450.0,0.00013972,2]
[361332237,1747481442949,-450.0,0.00013972,2]
[361332240,1747481442958,-450.0,0.00013972,2]
[361332243,1747481442968,-450.0,0.00013972,2]
[361332246,1747481442977,-403.19,0.00013972,2]
[361332249,1747481442991,-264.12,0.00013972,2]
[361332252,1747481443000,-450.0,0.00013972,2]
[361332255,1747481443010,-450.0,0.00013972,2]
[361332258,1747481443019,-450.0,0.00013972,2]
[361332261,1747481443029,-450.0,0.00013972,2]
[361332264,1747481443038,-450.0,0.00013972,2]
[361332267,1747481443047,-1031.95,0.00013972,2]
[361332270,1747481443056,-450.0,0.00013972,2]
[361332273,1747481443066,-450.0,0.00013972,2]
[361332276,1747481443075,-450.0,0.00013972,2]
[361332279,1747481443084,-450.0,0.00013972,2]
[361332281,1747481443093,-450.0,0.00013972,2]
[361332283,1747481443103,-450.0,0.00013972,2]
[361332285,1747481443112,-450.0,0.00013972,2]
[361332287,1747481443121,-450.0,0.00013972,2]
[361332289,1747481443130,-450.0,0.00013972,2]
[361332291,1747481443139,-450.0,0.00013972,2]
[361332293,1747481443148,-487.68,0.00013972,2]
[361332295,1747481443158,-209.9,0.00013972,2]
[361332297,1747481443167,-194.68,0.00013972,2]
[361332299,1747481443176,-450.0,0.00013972,2]
[361332301,1747481443186,-400.09,0.00013972,2]
[361332302,1747481443195,-636.26,0.00013972,2]
[361332303,1747481443204,-450.0,0.00013972,2]
[361332304,1747481443213,-475.16,0.00013972,2]
[361332305,1747481443222,-450.0,0.00013972,2]
[361332306,1747481443337,-450.0,0.00013972,2]
[361332307,1747481443346,-500.0,0.00013972,2]
[361332308,1747481443356,-258.51,0.00013972,2]
[361332309,1747481443365,-450.0,0.00013972,2]
[361332310,1747481443375,-450.0,0.00013972,2]
[361332311,1747481443384,-450.0,0.00013972,2]
[361332312,1747481443393,-450.0,0.00013972,2]
[361332313,1747481443402,-450.0,0.00013972,2]
[361332314,1747481443411,-1023.22,0.00013972,2]
[361332315,1747481443420,-450.0,0.00013972,2]
[361332316,1747481443429,-450.0,0.00013972,2]
[361332317,1747481443438,-450.0,0.00013972,2]
[361332318,1747481443447,-450.0,0.00013972,2]
[361332319,1747481443456,-561.68,0.00013972,2]
[361332320,1747481443466,-168.13076607,0.00013972,2]
[361332321,1747481443475,-161.3507113,0.00014,2]
[361332322,1747481443484,-154.14867152,0.00014009,2]
[361332323,1747481443494,-160.0,0.00014076,2]
[361332324,1747481443503,-160.0,0.00014076,2]
[361332326,1747481443512,-5955.72792199,0.00014076,2]
[361332328,1747481443521,-160.0,0.00014076,2]
[361332329,1747481443531,-450.0,0.00014109,2]
[361332330,1747481443540,-450.0,0.00014109,2]
[361332331,1747481443549,-450.0,0.00014109,2]
[361332332,1747481443558,-450.0,0.00014109,2]
[361332333,1747481443568,-450.0,0.00014109,2]
[361332334,1747481443577,-507.85,0.00014109,2]
[361332335,1747481443586,-450.0,0.00014109,2]
[361332336,1747481443595,-450.0,0.00014109,2]
[361332337,1747481443604,-495.80915151,0.00014109,2]
[361332338,1747481443614,-273.51,0.00014109,2]
[361332339,1747481443623,-453.75,0.00014109,2]
[361332340,1747481443632,-450.0,0.00014109,2]
[361332341,1747481443641,-450.0,0.00014109,2]
[361332342,1747481443650,-450.0,0.00014109,2]
[361332343,1747481443659,-450.0,0.00014109,2]
[361332344,1747481443669,-450.0,0.00014109,2]
[361332345,1747481443678,-450.0,0.00014109,2]
[361332346,1747481443687,-450.0,0.00014109,2]
[361332347,1747481443697,-450.0,0.00014109,2]
[361332348,1747481443706,-450.0,0.00014109,2]
[361332349,1747481443715,-566.99330885,0.00014109,2]
[361332350,1747481443724,-450.0,0.00014109,2]
[361332351,1747481443735,-360.62,0.00014109,2]
[361332352,1747481443744,-487.01,0.00014109,2]
[361332353,1747481443752,-450.0,0.00014109,2]
[361332354,1747481443761,-450.0,0.00014109,2]
[361332355,1747481443770,-450.0,0.00014109,2]
[361332356,1747481443779,-450.0,0.00014109,2]
[361332357,1747481443788,-450.0,0.00014109,2]
[361332358,1747481443798,-291.93,0.00014109,2]
[361332359,1747481443809,-450.0,0.00014109,2]
[361332360,1747481443818,-450.0,0.00014109,2]
[361332361,1747481443827,-553.0,0.00014109,2]
[361332362,1747481443836,-450.0,0.00014109,2]
[361332363,1747481443846,-450.0,0.00014109,2]
[361332364,1747481443856,-450.0,0.00014109,2]
[361332365,1747481443865,-450.0,0.00014109,2]
[361332366,1747481443875,-450.0,0.00014109,2]
[361332367,1747481443884,-450.0,0.00014109,2]
[361332368,1747481443893,-450.0,0.00014109,2]
[361332369,1747481443902,-450.0,0.00014109,2]
[361332370,1747481443912,-450.0,0.00014109,2]
[361332371,1747481443921,-450.0,0.00014109,2]
[361332372,1747481443930,-450.0,0.00014109,2]
[361332373,1747481443939,-450.0,0.00014109,2]
[361332374,1747481443949,-450.0,0.00014109,2]
[361332375,1747481443958,-872.01,0.00014109,2]
[361332376,1747481443967,-450.0,0.00014109,2]
[361332377,1747481443977,-450.0,0.00014109,2]
[361332378,1747481443990,-323.22753536,0.00014109,2]
[361332379,1747481443999,-450.0,0.00014109,2]
[361332380,1747481444008,-1587.9,0.00014109,2]
[361332381,1747481444017,-450.0,0.00014109,2]
[361332382,1747481444027,-450.0,0.00014109,2]
[361332383,1747481444036,-2772.47,0.00014109,2]
[361332384,1747481444045,-450.0,0.00014109,2]
[361332385,1747481444054,-450.0,0.00014109,2]
[361332386,1747481444064,-450.0,0.00014109,2]
[361332387,1747481444074,-450.0,0.00014109,2]
[361332388,1747481444083,-450.0,0.00014109,2]
[361332389,1747481444093,-450.0,0.00014109,2]
[361332390,1747481444102,-686.73,0.00014109,2]
[361332391,1747481444111,-450.0,0.00014109,2]
[361332392,1747481444120,-450.0,0.00014109,2]
[361332393,1747481444130,-450.0,0.00014109,2]
[361332394,1747481444139,-563.25286183,0.00014109,2]
[361332395,1747481444148,-450.0,0.00014109,2]
[361332396,1747481444158,-450.0,0.00014109,2]
[361332397,1747481444167,-450.0,0.00014109,2]
[361332398,1747481444176,-450.0,0.00014109,2]
[361332399,1747481444185,-450.0,0.00014109,2]
[361332400,1747481444194,-450.0,0.00014109,2]
[361332401,1747481444203,-450.0,0.00014109,2]
[361332402,1747481444212,-450.0,0.00014109,2]
[361332403,1747481444221,-450.0,0.00014109,2]
[361332404,1747481444230,-450.0,0.00014109,2]
[361332405,1747481444240,-1031.95,0.00014109,2]
[361332406,1747481444249,-450.0,0.00014109,2]
[361332407,1747481444258,-450.0,0.00014109,2]
[361332408,1747481444267,-450.0,0.00014109,2]
[361332409,1747481444278,-209.78,0.00014109,2]
[361332410,1747481444287,-450.0,0.00014109,2]
[361332411,1747481444296,-450.0,0.00014109,2]
[361332412,1747481444305,-355.35,0.00014109,2]
[361332413,1747481444315,-450.0,0.00014109,2]
[361332414,1747481444324,-450.0,0.00014109,2]
[361332415,1747481444333,-487.68,0.00014109,2]
[361332416,1747481444342,-450.0,0.00014109,2]
[361332418,1747481444351,-636.26,0.00014109,2]
[361332419,1747481444360,-450.0,0.00014109,2]
[361332420,1747481444369,-450.0,0.00014109,2]
[361332421,1747481444379,-450.0,0.00014109,2]
[361332422,1747481444388,-450.0,0.00014109,2]
[361332423,1747481444397,-450.0,0.00014109,2]
[361332424,1747481444406,-450.0,0.00014109,2]
[361332425,1747481444415,-450.0,0.00014109,2]
[361332426,1747481444424,-450.0,0.00014109,2]
[361332427,1747481444433,-450.0,0.00014109,2]
[361332428,1747481444443,-1023.22,0.00014109,2]
[361332429,1747481444452,-450.0,0.00014109,2]
[361332430,1747481444461,-450.0,0.00014109,2]
[361332431,1747481444472,-450.0,0.00014109,2]
[361332432,1747481444482,-561.68,0.00014109,2]
[361332433,1747481444491,-450.0,0.00014246,2]
[361332434,1747481444500,-450.0,0.00014246,2]
[361332435,1747481444509,-450.0,0.00014246,2]
[361332436,1747481444518,-450.0,0.00014246,2]
[361332437,1747481444527,-450.0,0.00014246,2]
[361332438,1747481444537,-450.0,0.00014246,2]
[361332439,1747481444546,-450.0,0.00014246,2]
[361332440,1747481444555,-450.0,0.00014246,2]
[361332441,1747481444565,-369.43831182,0.00014246,2]
[361332442,1747481444574,-450.0,0.00014246,2]
[361332443,1747481444583,-450.0,0.00014246,2]
[361332444,1747481444593,-450.0,0.00014246,2]
[361332445,1747481444603,-450.0,0.00014246,2]
[361332446,1747481444612,-450.0,0.00014246,2]
[361332447,1747481444622,-167.03179012,0.00014246,2]
[361332448,1747481444631,-450.0,0.00014246,2]
[361332449,1747481444640,-450.0,0.00014246,2]
[361332450,1747481444649,-450.0,0.00014246,2]
[361332451,1747481444658,-450.0,0.00014246,2]
[361332452,1747481444667,-596.8505323,0.00014246,2]
[361332453,1747481444675,-450.0,0.00014246,2]
[361332454,1747481444684,-450.0,0.00014246,2]
[361332455,1747481444693,-553.0,0.00014246,2]
[361332456,1747481444702,-450.0,0.00014246,2]
[361332457,1747481444711,-450.0,0.00014246,2]
[361332458,1747481444721,-450.0,0.00014246,2]
[361332459,1747481444731,-450.0,0.00014246,2]
[361332460,1747481444740,-450.0,0.00014246,2]
[361332461,1747481444749,-450.0,0.00014246,2]
[361332462,1747481444758,-450.0,0.00014246,2]
[361332463,1747481444767,-450.0,0.00014246,2]
[361332464,1747481444777,-450.0,0.00014246,2]
[361332465,1747481444786,-450.0,0.00014246,2]
[361332466,1747481444794,-450.0,0.00014246,2]
[361332467,1747481444804,-450.0,0.00014246,2]
[361332468,1747481444812,-872.01,0.00014246,2]
[361332469,1747481444821,-450.0,0.00014246,2]
[361332470,1747481444831,-450.0,0.00014246,2]
[361332471,1747481444840,-450.0,0.00014246,2]
[361332472,1747481444850,-1587.9,0.00014246,2]
[361332473,1747481444859,-450.0,0.00014246,2]
[361332474,1747481444867,-487.31,0.00014246,2]
[361332475,1747481444877,-2772.47,0.00014246,2]
[361332476,1747481444886,-450.0,0.00014246,2]
[361332477,1747481444895,-450.0,0.00014246,2]
[361332478,1747481444905,-450.0,0.00014246,2]
[361332479,1747481444915,-450.0,0.00014246,2]
[361332480,1747481444924,-450.0,0.00014246,2]
[361332481,1747481444934,-450.0,0.00014246,2]
[361332482,1747481444943,-686.73,0.00014246,2]
[361332483,1747481444952,-303.01992809,0.00014246,2]
[361332484,1747481444960,-384.46027324,0.00014246,2]
[361332485,1747481445141,-65.53972676,0.00014246,2]
[361332486,1747481445152,-414.39818452,0.00014246,2]
[361332487,1747481445164,-35.60181548,0.00014246,2]
[361332488,1747481445174,-450.0,0.00014246,2]
[361332489,1747481445184,-450.0,0.00014246,2]
[361332490,1747481445194,-450.0,0.00014246,2]
[361332491,1747481445203,-578.13,0.00014246,2]
[361332492,1747481445212,-450.0,0.00014246,2]
[361332493,1747481445221,-450.0,0.00014246,2]
[361332494,1747481445231,-482.57172753,0.00014246,2]
[361332495,1747481445241,-450.0,0.00014246,2]
[361332496,1747481445250,-450.0,0.00014246,2]
[361332497,1747481445259,-516.25,0.00014246,2]
[361332498,1747481445268,-1031.95,0.00014246,2]
[361332499,1747481445277,-450.0,0.00014246,2]
[361332500,1747481445287,-450.0,0.00014246,2]
[361332501,1747481445295,-450.0,0.00014246,2]
[361332502,1747481445304,-450.0,0.00014246,2]
[361332503,1747481445314,-0.97060412,0.00014246,2]
[361332504,1747481445326,-449.02939588,0.00014246,2]
[361332505,1747481445337,-450.0,0.00014246,2]
[361332506,1747481445346,-450.0,0.00014246,2]
[361332507,1747481445355,-289.84016086,0.00014246,2]
[361332508,1747481445367,-197.83983914,0.00014246,2]
[361332509,1747481445376,-450.0,0.00014246,2]
[361332510,1747481445386,-636.26,0.00014246,2]
[361332511,1747481445395,-450.0,0.00014246,2]
[361332512,1747481445404,-310.94,0.00014246,2]
[361332513,1747481445414,-450.0,0.00014246,2]
[361332514,1747481445423,-450.0,0.00014246,2]
[361332515,1747481445535,-450.0,0.00014246,2]
[361332516,1747481445545,-246.66665689,0.00014246,2]
[361332519,1747481445703,-468.75,0.00013698,2]
[361332520,1747481445713,-203.33334311,0.00014246,2]
[361332521,1747481445722,-450.0,0.00014246,2]
[361332522,1747481445731,-450.0,0.00014246,2]
[361332523,1747481445741,-450.0,0.00014246,2]
[361332524,1747481445750,-1023.22,0.00014246,2]
[361332525,1747481445759,-450.0,0.00014246,2]
[361332526,1747481445768,-450.0,0.00014246,2]
[361332527,1747481445778,-450.0,0.00014246,2]
[361332528,1747481445787,-561.68,0.00014246,2]
[361332530,1747481445796,-500.84216069,0.00014279,2]
[361332531,1747481445805,-450.0,0.00014383,2]
[361332532,1747481445814,-450.0,0.00014383,2]
[361332533,1747481445823,-450.0,0.00014383,2]
[361332534,1747481445832,-342.97,0.00014383,2]
[361332535,1747481445841,-450.0,0.00014383,2]
[361332536,1747481445851,-450.0,0.00014383,2]
[361332537,1747481445860,-450.0,0.00014383,2]
[361332538,1747481445869,-450.0,0.00014383,2]
[361332539,1747481445878,-450.0,0.00014383,2]
[361332540,1747481445887,-446.06505359,0.00014383,2]
[361332541,1747481445896,-450.0,0.00014383,2]
[361332542,1747481445906,-450.0,0.00014383,2]
[361332543,1747481445915,-450.0,0.00014383,2]
[361332544,1747481445924,-466.98722712,0.00014383,2]
[361332545,1747481445933,-400.73981762,0.00014383,2]
[361332546,1747481445943,-450.0,0.00014383,2]
[361332547,1747481445952,-450.0,0.00014383,2]
[361332548,1747481445961,-450.0,0.00014383,2]
[361332549,1747481445970,-553.0,0.00014383,2]
[361332550,1747481445979,-450.0,0.00014383,2]
[361332551,1747481445992,-450.0,0.00014383,2]
[361332552,1747481446001,-444.01,0.00014383,2]
[361332553,1747481446010,-450.0,0.00014383,2]
[361332554,1747481446019,-450.0,0.00014383,2]
[361332555,1747481446028,-450.0,0.00014383,2]
[361332556,1747481446037,-450.0,0.00014383,2]
[361332557,1747481446046,-450.0,0.00014383,2]
[361332558,1747481446055,-450.0,0.00014383,2]
[361332559,1747481446064,-872.01,0.00014383,2]
[361332560,1747481446073,-450.0,0.00014383,2]
[361332561,1747481446082,-450.0,0.00014383,2]
[361332562,1747481446092,-333.04300392,0.00014383,2]
[361332563,1747481446102,-1587.9,0.00014383,2]
[361332564,1747481446111,-450.0,0.00014383,2]
[361332565,1747481446120,-2772.47,0.00014383,2]
[361332566,1747481446129,-324.89,0.00014383,2]
[361332567,1747481446139,-450.0,0.00014383,2]
[361332568,1747481446148,-450.0,0.00014383,2]
[361332569,1747481446158,-450.0,0.00014383,2]
[361332570,1747481446169,-357.76,0.00014383,2]
[361332571,1747481446179,-450.0,0.00014383,2]
[361332572,1747481446188,-686.73,0.00014383,2]
[361332573,1747481446197,-450.0,0.00014383,2]
[361332574,1747481446206,-450.0,0.00014383,2]
[361332575,1747481446215,-450.0,0.00014383,2]
[361332576,1747481446224,-450.0,0.00014383,2]
[361332577,1747481446234,-450.0,0.00014383,2]
[361332578,1747481446243,-450.0,0.00014383,2]
[361332579,1747481446252,-450.0,0.00014383,2]
[361332580,1747481446262,-450.0,0.00014383,2]
[361332581,1747481446271,-450.0,0.00014383,2]
[361332582,1747481446280,-1031.95,0.00014383,2]
[361332583,1747481446290,-450.0,0.00014383,2]
[361332584,1747481446299,-450.0,0.00014383,2]
[361332585,1747481446309,-450.0,0.00014383,2]
[361332586,1747481446318,-418.16,0.00014383,2]
[361332587,1747481446327,-450.0,0.00014383,2]
[361332588,1747481446337,-464.62,0.00014383,2]
[361332589,1747481446346,-450.0,0.00014383,2]
[361332590,1747481446355,-487.68,0.00014383,2]
[361332591,1747481446365,-450.0,0.00014383,2]
[361332592,1747481446374,-636.26,0.00014383,2]
[361332593,1747481446384,-450.0,0.00014383,2]
[361332594,1747481446393,-450.0,0.00014383,2]
[361332595,1747481446403,-450.0,0.00014383,2]
[361332596,1747481446412,-450.0,0.00014383,2]
[361332597,1747481446422,-450.0,0.00014383,2]
[361332598,1747481446431,-450.0,0.00014383,2]
[361332599,1747481446440,-450.0,0.00014383,2]
[361332600,1747481446449,-422.79795681,0.00014383,2]
[361332601,1747481446458,-1023.22,0.00014383,2]
[361332602,1747481446467,-572.31,0.00014383,2]
[361332603,1747481446476,-450.0,0.00014383,2]
[361332604,1747481446486,-450.0,0.00014383,2]
[361332605,1747481446496,-561.68,0.00014383,2]
[361332606,1747481446505,-500.0,0.0001442,2]
[361332607,1747481446514,-500.0,0.00014467,2]
[361332608,1747481446523,-500.0,0.00014468,2]
[361332609,1747481446533,-500.0,0.00014473,2]
[361332610,1747481446542,-500.0,0.00014479,2]
[361332611,1747481446552,-206.12975625,0.0001452,2]
[361332612,1747481446561,-450.0,0.0001452,2]
[361332613,1747481446570,-450.0,0.0001452,2]
[361332614,1747481446580,-450.0,0.0001452,2]
[361332616,1747481446589,-450.0,0.0001452,2]
[361332617,1747481446598,-526.4,0.0001452,2]
[361332619,1747481446607,-450.0,0.0001452,2]
[361332621,1747481446616,-450.0,0.0001452,2]
[361332622,1747481446625,-450.0,0.0001452,2]
[361332623,1747481446635,-450.0,0.0001452,2]
[361332624,1747481446644,-450.0,0.0001452,2]
[361332625,1747481446653,-450.0,0.0001452,2]
[361332626,1747481446663,-450.0,0.0001452,2]
[361332628,1747481446672,-450.0,0.0001452,2]
[361332629,1747481446682,-553.0,0.0001452,2]
[361332630,1747481446691,-450.0,0.0001452,2]
[361332631,1747481446700,-450.0,0.0001452,2]
[361332632,1747481446709,-450.0,0.0001452,2]
[361332633,1747481446719,-450.0,0.0001452,2]
[361332634,1747481446727,-450.0,0.0001452,2]
[361332635,1747481446737,-450.0,0.0001452,2]
[361332636,1747481446746,-450.0,0.0001452,2]
[361332637,1747481446755,-450.0,0.0001452,2]